bitfinex/quotes_ETHUSD_20241101
["timestamp","ask_amount","ask_price","bid_price","bid_amount"]
[1730434454836,3.99144,2505.4,2505.1,0.8203]
[1730434455137,4.76153,2505.5,2505.1,0.8203]
[1730434455300,3.99123,2505.5,2505.1,0.8203]
[1730434456319,7.98254,2505.5,2505.1,0.8203]
[1730434456628,3.99123,2505.5,2505.1,0.8203]
[1730434457335,7.98255,2505.5,2505.1,0.8203]
[1730434457909,3.99123,2505.5,2505.1,0.8203]
[1730434458542,7.98255,2505.5,2505.1,0.8203]
[1730434460743,3.99148,2505.4,2505.1,0.8203]
[1730434462815,3.99123,2505.5,2505.1,0.8203]
[1730434463045,7.98258,2505.5,2505.1,0.8203]
[1730434463211,3.99123,2505.5,2505.1,0.8203]
[1730434463528,7.98254,2505.5,2505.1,0.8203]
[1730434463735,7.98256,2505.5,2505.1,0.8203]
[1730434464907,3.99123,2505.5,2505.1,0.8203]
[1730434465113,3.99138,2505.4,2505.1,0.8203]
[1730434467051,3.99123,2505.5,2505.1,0.8203]
[1730434467454,7.98258,2505.5,2505.1,0.8203]
[1730434469356,3.99123,2505.5,2505.1,0.8203]
[1730434469522,3.99139,2505.4,2505.1,0.8203]
[1730434469853,3.99123,2505.5,2505.1,0.8203]
[1730434470558,7.98259,2505.5,2505.1,0.8203]
[1730434473971,3.99123,2505.5,2505.1,0.8203]
[1730434474864,3.991,2505.7,2505.1,1.79996004]
[1730434475043,3.991,2505.7,2505.2,0.7899]
[1730434475230,3.991,2505.7,2505.2,1.62729188]
[1730434475429,3.99106,2505.6,2505.2,1.62729188]
[1730434475654,3.99106,2505.6,2505.2,0.7899]
[1730434476613,3.99106,2505.6,2505.2,1.62729188]
[1730434477129,3.99106,2505.6,2505.2,0.7899]
[1730434478331,3.991,2505.7,2505.2,0.7899]
[1730434478972,7.98203,2505.7,2505.2,0.7899]
[1730434479465,3.991,2505.7,2505.2,0.7899]
[1730434479957,7.98201,2505.7,2505.2,0.7899]
[1730434480159,3.991,2505.7,2505.2,0.7899]
[1730434480345,3.991,2505.7,2505.3,0.7662]
[1730434480757,7.98203,2505.7,2505.3,0.7662]
[1730434481270,1.92034841,2506.1,2505.1,0.83739188]
[1730434481271,0.7602,2506.1,2505.5,0.7662]
[1730434481477,4.75055,2506.1,2505.6,6.12070622]
[1730434482973,8.7409,2506.1,2505.6,6.12070622]
[1730434483154,8.7409,2506.1,2505.6,2.12966622]
[1730434484251,4.75055,2506.1,2505.6,2.12966622]
[1730434484551,4.75055,2506.1,2505.7,0.68870762]
[1730434484962,3.99045,2506.0,2505.7,0.68870762]
[1730434485165,3.99045,2506.0,2505.6,0.62609875]
[1730434485347,3.99045,2506.0,2505.5,0.7662]
[1730434486591,8.74093,2506.1,2505.5,4.7574]
[1730434486740,4.75055,2506.1,2505.5,4.7574]
[1730434486940,3.99035,2506.1,2505.6,0.7519]
[1730434487280,7.98071,2506.1,2505.6,0.7519]
[1730434488235,3.99035,2506.1,2505.6,0.7519]
[1730434488639,7.98073,2506.1,2505.6,0.7519]
[1730434488862,3.99035,2506.1,2505.6,4.74285]
[1730434489058,3.99035,2506.1,2505.6,5.76661975]
[1730434490063,3.99004,2506.3,2505.8,1.50356747]
[1730434490243,3.98972,2506.5,2506.1,0.7843]
[1730434490575,4.80188,2506.7,2506.1,0.7843]
[1730434490945,3.98964,2506.5,2506.1,0.7843]
[1730434491576,7.97941,2506.5,2506.1,0.7843]
[1730434491814,3.98982,2506.4,2506.1,0.7843]
[1730434493515,7.97941,2506.5,2506.1,0.7843]
[1730434493710,3.98964,2506.5,2506.1,0.7843]
[1730434494309,7.97937,2506.5,2506.1,0.7843]
[1730434494612,3.98964,2506.5,2506.1,0.7843]
[1730434496313,3.98981,2506.4,2506.1,0.7843]
[1730434497310,7.97938,2506.5,2506.1,0.7843]
[1730434497510,3.98964,2506.5,2506.1,0.7843]
[1730434498307,7.97936,2506.5,2506.1,0.7843]
[1730434499316,3.98964,2506.5,2506.1,0.7843]
[1730434500318,7.97937,2506.5,2506.1,0.7843]
[1730434500502,3.98964,2506.5,2506.1,0.7843]
[1730434501615,3.98934,2506.7,2506.2,0.7657]
[1730434501788,3.98934,2506.7,2506.3,0.7657]
[1730434501995,3.989,2506.9,2506.4,0.7657]
[1730434502718,7.97809,2506.9,2506.4,0.7657]
[1730434503213,3.989,2506.9,2506.4,0.7657]
[1730434504182,6.30786747,2506.9,2506.4,0.7657]
[1730434505899,1.50356747,2506.7,2506.1,0.7959]
[1730434506219,3.99003,2506.3,2505.9,0.7959]
[1730434507404,0.816,2506.4,2505.9,5.265049]
[1730434507610,3.98939,2506.7,2506.1,3.99025]
[1730434507909,3.9895,2506.6,2506.2,0.7959]
[1730434509519,5.49295747,2506.7,2506.2,0.7959]
[1730434510929,3.98957,2506.6,2506.2,0.7959]
[1730434513423,6.30920747,2506.5,2505.8,4.78654]
[1730434513728,3.98996,2506.3,2505.8,0.7959]
[1730434513923,3.98996,2506.3,2505.8,1.82400875]
[1730434517905,3.98996,2506.3,2505.8,5.81471875]
[1730434518217,3.98996,2506.3,2505.8,1.82400875]
[1730434518416,3.98996,2506.3,2505.8,0.7959]
[1730434518733,3.98996,2506.3,2505.8,2.29946747]
[1730434519140,3.98996,2506.3,2505.8,0.7959]
[1730434519434,3.99057,2506.0,2505.5,0.8293]
[1730434519635,3.9906,2505.9,2505.5,0.8293]
[1730434521410,3.99085,2505.8,2505.5,0.8293]
[1730434521799,3.99106,2505.6,2505.5,0.8293]
[1730434522005,3.99091,2505.7,2505.5,0.8293]
[1730434523133,3.99125,2505.5,2505.1,0.7885]
[1730434523343,3.99125,2505.5,2505.1,1.31770675]
[1730434523510,3.99137,2505.4,2505.1,0.7885]
[1730434523911,3.99115,2505.6,2505.3,0.7631]
[1730434524141,3.99099,2505.7,2505.3,0.7631]
[1730434524943,3.99122,2505.5,2505.3,0.7631]
[1730434525904,1.50356747,2505.7,2505.1,0.7631]
[1730434526221,3.99153,2505.3,2505.1,0.7631]
[1730434528755,3.99169,2505.2,2505.1,0.7631]
[1730434528963,3.99125,2505.5,2505.1,0.7631]
[1730434529117,3.99141,2505.4,2505.1,0.7631]
[1730434529814,3.99125,2505.5,2505.1,0.7631]
[1730434530118,3.99125,2505.5,2505.1,1.38898075]
[1730434530355,3.99096,2505.7,2505.2,1.50356747]
[1730434530559,3.99096,2505.7,2505.3,0.7683]
[1730434530720,7.98199,2505.7,2505.3,0.7683]
[1730434530917,3.99108,2505.6,2505.3,0.7683]
[1730434531156,3.99108,2505.6,2505.3,1.06605762]
[1730434532010,3.99096,2505.7,2505.3,1.06605762]
[1730434532219,3.99122,2505.5,2505.3,1.06605762]
[1730434532611,3.99122,2505.5,2505.3,0.7683]
[1730434535058,7.98198,2505.7,2505.3,0.7683]
[1730434535355,3.99096,2505.7,2505.3,0.7683]
[1730434535566,3.99108,2505.6,2505.3,0.7683]
[1730434536151,3.99125,2505.5,2505.3,0.7683]
[1730434536782,3.99137,2505.4,2504.8,9.48801747]
[1730434536943,3.99137,2505.4,2504.9,1.76250175]
[1730434537522,3.99125,2505.5,2505.0,1.50356747]
[1730434537831,3.99125,2505.5,2505.1,0.8935279]
[1730434538015,3.99125,2505.5,2505.1,0.8137]
[1730434538448,7.98198,2505.7,2505.2,0.7885]
[1730434538658,3.99063,2505.9,2505.4,0.7885]
[1730434538831,3.99091,2505.7,2505.4,0.7885]
[1730434539031,3.99107,2505.6,2505.4,0.7885]
[1730434540051,3.99121,2505.5,2505.0,5.49546747]
[1730434540231,3.99121,2505.5,2505.2,0.8021]
[1730434540433,7.98254,2505.5,2505.2,0.8021]
[1730434540929,3.99153,2505.3,2505.2,0.8021]
[1730434541128,3.99128,2505.5,2505.2,0.8021]
[1730434542363,3.99142,2505.4,2505.2,0.8021]
[1730434543170,3.99142,2505.4,2504.8,1.50356747]
[1730434543382,3.99128,2505.5,2505.0,0.8021]
[1730434543383,4.80298,2505.5,2505.0,0.8021]
[1730434543670,3.9914,2505.4,2505.0,0.8021]
[1730434544230,4.80298,2505.5,2505.0,0.8021]
[1730434544739,3.99147,2505.4,2505.0,0.8021]
[1730434547254,4.80298,2505.5,2505.0,0.8021]
[1730434547582,0.8117,2505.5,2505.1,3.99185]
[1730434547870,8.79011,2505.7,2505.2,0.8149]
[1730434548282,3.99099,2505.7,2505.2,0.8149]
[1730434548488,3.99111,2505.6,2505.2,0.8149]
[1730434548849,3.99099,2505.7,2505.2,0.8149]
[1730434549052,2.31166747,2505.9,2505.2,0.8149]
[1730434549053,7.98257,2505.5,2505.2,0.8149]
[1730434549280,3.99126,2505.5,2505.2,0.8149]
[1730434550349,7.98262,2505.5,2505.2,0.8149]
[1730434550794,3.9914,2505.4,2505.2,0.8149]
[1730434552161,3.99126,2505.5,2505.2,0.8149]
[1730434552366,7.98257,2505.5,2505.2,0.8149]
[1730434552593,3.99126,2505.5,2505.2,0.8149]
[1730434552961,7.98257,2505.5,2505.2,0.8149]
[1730434553164,3.99126,2505.5,2505.2,1.04674675]
[1730434554695,7.98256,2505.5,2505.2,1.04674675]
[1730434554888,3.99126,2505.5,2505.2,1.04674675]
[1730434555193,7.98257,2505.5,2505.2,1.04674675]
[1730434555896,7.98256,2505.5,2505.2,1.04674675]
[1730434557290,3.99126,2505.5,2505.2,1.04674675]
[1730434557500,7.98204,2505.7,2505.2,1.04674675]
[1730434557793,3.99108,2505.6,2505.2,1.04674675]
[1730434558199,3.99108,2505.6,2505.3,0.8159]
[1730434560291,3.99098,2505.7,2505.3,0.8159]
[1730434560496,7.98202,2505.7,2505.3,1.47021442]
[1730434560793,3.99098,2505.7,2505.4,0.8009]
[1730434561090,7.98139,2505.9,2505.5,0.7977]
[1730434561296,7.98139,2505.9,2505.5,1.49240919]
[1730434561598,3.99068,2505.9,2505.5,1.49240919]
[1730434561905,3.99068,2505.9,2505.6,0.7977]
[1730434562198,3.99076,2505.8,2505.6,0.7977]
[1730434562568,3.99033,2506.1,2505.6,0.7977]
[1730434562769,2.32456747,2506.3,2505.6,0.7977]
[1730434563096,3.99071,2505.9,2505.6,0.7977]
[1730434563391,3.99032,2506.1,2505.7,0.8284]
[1730434563795,3.99043,2506.0,2505.7,0.8284]
[1730434564004,3.99043,2506.0,2505.7,1.06957834]
[1730434564499,3.99032,2506.1,2505.7,1.06957834]
[1730434564500,7.98071,2506.1,2505.7,1.06957834]
[1730434565493,3.99045,2506.0,2505.7,1.06957834]
[1730434565898,3.98045,2506.0,2505.7,1.06957834]
[1730434567404,3.0,2506.5,2505.7,1.06957834]
[1730434567405,3.98971,2506.5,2505.8,1.50356747]
[1730434567605,3.98971,2506.5,2506.1,0.8107]
[1730434567768,3.98971,2506.5,2506.1,1.44916293]
[1730434568274,3.98992,2506.4,2506.1,0.8107]
[1730434568683,3.98971,2506.5,2506.1,0.8107]
[1730434568964,3.9901,2506.2,2506.1,0.8107]
[1730434569178,2.30256747,2506.9,2506.1,0.8107]
[1730434569179,3.98985,2506.4,2506.1,0.8107]
[1730434571669,3.98955,2506.6,2506.1,0.8107]
[1730434571870,3.98955,2506.6,2506.2,0.6384457]
[1730434576616,3.98918,2506.8,2506.3,0.7625]
[1730434577298,7.97844,2506.8,2506.3,0.7625]
[1730434577822,0.799,2506.9,2506.3,0.7625]
[1730434578124,8.77713,2506.9,2506.3,0.84229067]
[1730434578434,8.77713,2506.9,2506.4,0.63358381]
[1730434578728,3.98917,2506.8,2506.4,0.63358381]
[1730434580130,3.98946,2506.7,2506.3,0.84229067]
[1730434580336,5.49318747,2506.5,2506.0,0.8153]
[1730434580633,3.98996,2506.3,2506.0,0.8153]
[1730434580838,3.98996,2506.3,2506.0,1.295891]
[1730434582424,7.98002,2506.3,2506.0,1.295891]
[1730434582628,3.98996,2506.3,2506.0,0.8153]
[1730434582939,3.98979,2506.4,2506.0,0.8153]
[1730434583606,3.99001,2506.3,2506.0,0.8153]
[1730434583808,3.99014,2506.2,2506.0,0.8153]
[1730434584104,7.9797,2506.4,2506.0,0.8153]
[1730434585228,3.98996,2506.3,2506.0,0.8153]
[1730434586898,7.97969,2506.4,2506.0,0.8153]
[1730434588136,4.80076,2506.6,2506.0,1.295903]
[1730434588307,3.98923,2506.8,2506.2,5.49365747]
[1730434588625,3.98923,2506.8,2506.3,0.87719115]
[1730434588934,3.98923,2506.8,2506.3,1.51427601]
[1730434589718,7.97849,2506.8,2506.3,1.51427601]
[1730434591748,3.98889,2507.0,2506.4,0.7549]
[1730434591942,3.98903,2506.9,2506.5,0.7549]
[1730434592552,3.98916,2506.8,2506.5,0.7549]
[1730434594149,3.98961,2506.6,2506.2,0.7549]
[1730434594329,3.98961,2506.6,2506.2,1.2774843]
[1730434594905,5.49287747,2506.7,2506.2,1.2774843]
[1730434595149,9.48228747,2506.7,2506.2,1.2774843]
[1730434595641,3.98931,2506.7,2506.2,1.2774843]
[1730434595810,3.9895,2506.6,2506.2,1.2774843]
[1730434596624,3.98966,2506.5,2506.2,1.2774843]
[1730434598149,3.98931,2506.7,2506.2,1.2774843]
[1730434598351,3.98956,2506.6,2506.2,1.2774843]
[1730434600650,2.27326747,2506.9,2506.2,1.2774843]
[1730434600851,3.98971,2506.5,2506.2,1.2774843]
[1730434602359,3.98981,2506.4,2506.2,1.2774843]
[1730434602650,7.97948,2506.5,2506.2,0.7549]
[1730434602859,3.98971,2506.5,2506.2,0.7549]
[1730434603455,3.98978,2506.4,2506.2,0.7549]
[1730434603653,3.99011,2506.2,2505.8,0.7515]
[1730434603954,3.99011,2506.2,2505.8,1.20996944]
[1730434604452,7.97971,2506.4,2505.8,1.96203691]
[1730434604640,3.98978,2506.4,2505.9,0.89839964]
[1730434605019,7.9797,2506.4,2505.9,0.89839964]
[1730434605223,3.98978,2506.4,2506.0,0.68510566]
[1730434605461,3.98998,2506.3,2506.0,0.68510566]
[1730434605758,3.98998,2506.3,2505.9,0.8186]
[1730434606554,3.98998,2506.3,2505.9,0.89839966]
[1730434606927,3.98998,2506.3,2505.9,0.8186]
[1730434607345,3.98978,2506.4,2506.0,0.07979968]
[1730434607826,3.98996,2506.3,2506.0,0.07979968]
[1730434608016,3.98996,2506.3,2506.0,0.29902453]
[1730434608223,3.98978,2506.4,2506.0,0.29902453]
[1730434608418,7.97971,2506.4,2506.0,0.29902453]
[1730434609069,3.98978,2506.4,2506.1,0.8072]
[1730434609548,7.97971,2506.4,2506.1,0.8072]
[1730434610160,3.98978,2506.4,2506.1,0.8072]
[1730434610463,3.98996,2506.3,2506.1,0.8072]
[1730434611160,3.99012,2506.2,2505.9,0.8012]
[1730434611538,3.99012,2506.2,2505.9,1.55960724]
[1730434613224,3.99012,2506.2,2505.9,2.39657709]
[1730434614059,4.79318,2506.4,2505.9,2.39657709]
[1730434614268,3.98996,2506.3,2506.0,0.07979978]
[1730434614765,3.98996,2506.3,2505.9,2.39657709]
[1730434614933,3.98996,2506.3,2506.0,0.54963767]
[1730434616470,3.99026,2506.1,2506.0,0.54963767]
[1730434616790,4.79318,2506.4,2505.7,1.60536985]
[1730434616791,3.99066,2505.9,2505.7,1.60536985]
[1730434617088,3.99074,2505.8,2505.7,0.7684]
[1730434617588,3.99074,2505.8,2505.5,1.59456985]
[1730434617761,3.99074,2505.8,2505.6,0.7236019]
[1730434618876,0.37084541,2505.7,2505.6,0.7236019]
[1730434619422,0.37078053,2505.7,2505.6,0.7236019]
[1730434621370,3.99017,2506.2,2505.6,5.5250619]
[1730434621577,0.37077473,2506.1,2505.6,5.5250619]
[1730434621880,0.37077473,2506.0,2505.7,0.78655992]
[1730434622085,0.37077473,2505.9,2505.7,0.78655992]
[1730434622280,3.99017,2506.2,2505.7,0.78655992]
[1730434622487,0.37072823,2506.1,2505.7,0.78655992]
[1730434622662,0.37072823,2506.0,2505.7,0.78655992]
[1730434622863,0.37072823,2505.9,2505.8,0.71485917]
[1730434623805,0.37072823,2505.9,2505.8,1.52385917]
[1730434624390,0.3706963,2505.9,2505.8,1.52385917]
[1730434624790,1.50356747,2506.3,2505.8,1.52385917]
[1730434624996,0.37069928,2506.2,2505.8,1.52385917]
[1730434625162,0.37069928,2506.1,2505.9,0.63013091]
[1730434625362,0.37069928,2506.0,2505.9,0.63013091]
[1730434626705,0.37069928,2506.0,2505.9,1.50413752]
[1730434627796,0.37069928,2506.0,2505.9,1.42433091]
[1730434628005,3.98986,2506.4,2505.9,1.42433091]
[1730434628214,3.98955,2506.6,2506.1,0.7892]
[1730434628874,3.98955,2506.6,2506.2,0.07979607]
[1730434629280,3.98994,2506.3,2506.2,0.07979607]
[1730434629490,1.50356747,2506.3,2506.1,0.7892]
[1730434629810,3.99037,2506.1,2505.8,0.7892]
[1730434630104,3.99042,2506.0,2505.8,0.7892]
[1730434630599,0.7801,2506.2,2505.8,0.7892]
[1730434631102,3.99027,2506.1,2505.8,0.7892]
[1730434631604,3.99027,2506.1,2505.5,3.99111]
[1730434631605,3.99068,2505.9,2505.5,4.65716985]
[1730434631767,3.99082,2505.8,2505.5,0.8202]
[1730434631968,3.99082,2505.8,2505.5,1.65716985]
[1730434632299,3.99082,2505.8,2505.5,0.8202]
[1730434632799,5.49424747,2505.9,2505.5,0.8202]
[1730434632971,3.99068,2505.9,2505.5,0.8202]
[1730434633167,3.99068,2505.9,2505.5,1.90974046]
[1730434633470,9.48432747,2506.1,2505.5,1.90974046]
[1730434633671,7.98076,2506.1,2505.6,0.07981276]
[1730434634468,3.99036,2506.1,2505.7,0.7571]
[1730434634999,7.98074,2506.1,2505.7,0.7571]
[1730434635203,3.99043,2506.0,2505.7,0.7571]
[1730434637090,3.99058,2505.9,2505.7,0.7571]
[1730434638111,3.99036,2506.1,2505.7,0.7571]
[1730434638279,7.98073,2506.1,2505.7,0.7571]
[1730434638690,3.99046,2506.0,2505.7,0.7571]
[1730434640487,3.99036,2506.1,2505.7,0.7571]
[1730434640788,3.98978,2506.4,2505.8,4.89124927]
[1730434641113,3.98996,2506.3,2506.0,0.8208]
[1730434641977,7.98001,2506.3,2506.0,0.8208]
[1730434642178,3.98996,2506.3,2506.0,0.8208]
[1730434642505,5.49324747,2506.5,2506.0,0.8208]
[1730434642710,7.97945,2506.5,2506.1,0.54508217]
[1730434643283,3.98978,2506.4,2506.1,0.54508217]
[1730434643712,3.99,2506.3,2506.0,0.8208]
[1730434643911,3.99019,2506.2,2505.8,0.8004]
[1730434644098,4.7563,2506.3,2505.8,0.8004]
[1730434644418,3.98979,2506.4,2506.0,0.8004]
[1730434644779,3.98968,2506.5,2506.0,0.8004]
[1730434645119,5.49289747,2506.7,2506.2,0.8004]
[1730434645616,3.98947,2506.6,2506.2,0.8004]
[1730434645828,5.49289747,2506.7,2506.2,0.8004]
[1730434645829,3.98963,2506.5,2506.2,0.8004]
[1730434646187,5.49319747,2506.5,2506.2,0.8004]
[1730434646621,3.98963,2506.5,2506.2,0.8004]
[1730434647129,5.49319747,2506.5,2506.2,0.8004]
[1730434647728,0.7767,2506.6,2506.2,0.8004]
[1730434647928,3.98954,2506.6,2506.2,0.8004]
[1730434648227,3.98954,2506.6,2506.2,1.279464]
[1730434649897,5.49301747,2506.7,2506.2,1.279464]
[1730434650113,9.48246747,2506.7,2506.2,1.279464]
[1730434652092,5.49301747,2506.7,2506.2,1.279464]
[1730434652325,5.49297747,2506.7,2506.2,1.279464]
[1730434652695,9.48238747,2506.7,2506.2,1.279464]
[1730434653424,5.49297747,2506.7,2506.3,0.7942]
[1730434654039,3.98941,2506.7,2506.3,1.7195604]
[1730434655338,3.98941,2506.7,2506.3,0.7942]
[1730434655339,7.97884,2506.7,2506.3,0.7942]
[1730434655638,3.98941,2506.7,2506.3,0.7942]
[1730434655858,7.97885,2506.7,2506.3,0.7942]
[1730434656200,3.98941,2506.7,2506.3,0.7942]
[1730434658045,5.49264747,2506.9,2506.3,0.7942]
[1730434658346,0.8184,2507.4,2506.8,0.8105]
[1730434658501,5.49167747,2507.5,2507.0,4.79931]
[1730434658702,5.39167747,2507.5,2507.0,4.79931]
[1730434659138,5.39167747,2507.5,2507.0,0.8105]
[1730434659314,5.39167747,2507.5,2507.0,4.79932]
[1730434659514,5.39167747,2507.5,2507.0,0.8105]
[1730434659728,9.37982747,2507.5,2507.0,0.8105]
[1730434660126,5.39167747,2507.5,2507.0,0.8105]
[1730434660335,5.39167747,2507.5,2507.0,1.35347818]
[1730434661233,9.37981747,2507.5,2507.0,1.35347818]
[1730434662030,5.39167747,2507.5,2507.0,1.35347818]
[1730434662604,9.37981747,2507.5,2507.0,1.35347818]
[1730434662811,5.39167747,2507.5,2507.0,1.35347818]
[1730434663116,5.39167747,2507.5,2507.1,0.59727599]
[1730434663504,1.50356747,2507.5,2507.1,0.59727599]
[1730434663815,4.1049448,2507.8,2507.3,3.98833]
[1730434664332,4.1049448,2507.8,2507.4,0.8308]
[1730434665012,4.1049348,2507.8,2507.4,0.8308]
[1730434665218,3.98788,2507.6,2507.4,0.8308]
[1730434666542,4.1048348,2507.8,2507.4,0.8308]
[1730434667442,8.0925148,2507.8,2507.4,0.8308]
[1730434667824,3.98773,2507.7,2507.4,0.8308]
[1730434670011,4.1048348,2507.8,2507.4,0.8308]
[1730434670211,0.1172348,2507.8,2507.4,1.320693]
[1730434670451,0.1172348,2507.8,2507.4,1.40044797]
[1730434671330,0.1172348,2507.8,2507.4,1.320693]
[1730434673108,4.1048048,2507.8,2507.4,1.320693]
[1730434674525,4.1048048,2507.8,2507.4,1.40044802]
[1730434676041,0.1172348,2507.8,2507.6,0.7795]
[1730434679345,4.1048848,2507.8,2507.6,0.7795]
[1730434680553,3.98771,2507.7,2507.6,0.7795]
[1730434680750,3.98771,2507.7,2507.2,0.7799]
[1730434681270,8.0925648,2507.8,2507.2,4.76834]
[1730434681559,8.0925648,2507.8,2507.3,1.08577435]
[1730434682147,4.1048848,2507.8,2507.3,1.08577435]
[1730434682323,3.98772,2507.7,2507.3,1.08577435]
[1730434684573,3.98788,2507.6,2507.3,1.08577435]
[1730434684725,3.98821,2507.4,2507.0,0.8005]
[1730434684933,7.9759,2507.6,2507.0,4.86907656]
[1730434685143,3.98805,2507.5,2507.0,0.88026656]
[1730434686369,3.98805,2507.5,2507.0,1.51753796]
[1730434687035,3.98805,2507.5,2507.0,1.4377714]
[1730434688656,3.98822,2507.4,2507.0,0.8005]
[1730434689044,3.98853,2507.2,2507.0,0.8005]
[1730434689251,3.98853,2507.2,2506.6,6.98931]
[1730434689556,3.98853,2507.2,2506.8,0.8232]
[1730434694436,3.98853,2507.2,2506.8,0.90297377]
[1730434694639,3.98853,2507.2,2506.8,2.24147889]
[1730434695382,3.98853,2507.2,2506.8,2.16170512]
[1730434695671,3.98853,2507.2,2506.8,2.2414789]
[1730434696280,3.98853,2507.2,2506.8,2.16170512]
[1730434696579,3.98853,2507.2,2506.8,2.24147891]
[1730434696743,3.98853,2507.2,2506.8,2.16170512]
[1730434697660,3.98853,2507.2,2506.8,2.24147892]
[1730434699676,4.74741,2507.4,2506.8,0.8232]
[1730434699884,4.77749,2506.9,2506.5,1.50356747]
[1730434700043,4.77749,2506.9,2506.4,4.77406]
[1730434700552,0.7885,2506.9,2506.4,4.77406]
[1730434700874,0.7885,2506.9,2506.5,6.51950165]
[1730434703588,0.7885,2506.9,2506.5,2.52990165]
[1730434704049,4.7775,2506.9,2506.5,2.52990165]
[1730434704675,4.7775,2506.9,2506.2,1.59686985]
[1730434704676,3.9894,2506.7,2506.2,1.59686985]
[1730434704882,3.9894,2506.7,2506.2,0.7599]
[1730434706343,3.9894,2506.7,2506.2,4.74994]
[1730434706876,4.77757,2506.9,2506.3,5.49349747]
[1730434707083,4.76674,2507.1,2506.5,5.49318747]
[1730434707239,0.778,2507.1,2506.7,5.49286747]
[1730434707655,0.778,2507.1,2506.7,1.50356747]
[1730434708667,8.75547,2507.1,2506.6,1.39092875]
[1730434708845,8.75547,2507.1,2506.6,0.62582875]
[1730434709045,4.76667,2507.1,2506.4,3.7651]
[1730434709258,4.76667,2507.1,2506.4,3.8448823]
[1730434709680,3.98886,2507.0,2506.5,3.98961]
[1730434710349,4.76667,2507.1,2506.4,3.7651]
[1730434710665,3.98896,2507.0,2506.4,3.7651]
[1730434710868,3.98896,2507.0,2506.5,1.40853173]
[1730434711384,4.76667,2507.1,2506.5,1.40853173]
[1730434711591,8.75545,2507.1,2506.5,5.39813173]
[1730434711884,4.76667,2507.1,2506.5,5.39813173]
[1730434712056,4.76667,2507.1,2506.6,0.07978125]
[1730434712846,0.778,2507.1,2506.7,0.828]
[1730434713088,7.97691,2507.3,2506.7,0.828]
[1730434713089,8.78871,2507.3,2506.7,0.828]
[1730434713273,3.98857,2507.2,2506.7,0.828]
[1730434713867,3.9886,2507.2,2506.7,0.828]
[1730434714068,3.9886,2507.2,2506.7,1.70136617]
[1730434714298,0.8118,2507.3,2506.8,4.06892127]
[1730434714456,0.8118,2507.3,2506.8,0.07978127]
[1730434714886,0.8118,2507.3,2506.8,4.06891127]
[1730434715660,4.80018,2507.3,2506.8,0.07978127]
[1730434715993,4.80018,2507.3,2506.8,0.81982262]
[1730434716199,4.80018,2507.3,2506.8,0.89959658]
[1730434716498,4.80018,2507.3,2506.8,0.81982262]
[1730434718159,4.80017,2507.3,2506.8,0.89959659]
[1730434718381,4.80017,2507.3,2506.9,0.72203741]
[1730434719073,0.8118,2507.3,2506.9,0.72203741]
[1730434719394,7.97658,2507.4,2506.9,0.72203741]
[1730434719595,3.98836,2507.3,2507.0,0.7919]
[1730434720402,3.98852,2507.2,2507.0,0.7919]
[1730434720890,3.98829,2507.4,2507.0,0.7919]
[1730434721259,3.98836,2507.3,2507.0,1.35018514]
[1730434721460,3.98836,2507.3,2507.0,0.7919]
[1730434723770,3.98829,2507.4,2507.0,0.7919]
[1730434723970,2.31516747,2507.5,2507.0,0.7919]
[1730434724187,3.98819,2507.4,2507.0,0.7919]
[1730434724585,7.97653,2507.4,2507.0,0.7919]
[1730434725684,3.98835,2507.3,2507.0,0.7919]
[1730434725871,0.8116,2507.5,2507.0,1.42995802]
[1730434726206,3.98812,2507.5,2507.0,0.7919]
[1730434726665,0.1172348,2507.8,2507.3,8.49182747]
[1730434726866,0.1172348,2507.8,2507.5,1.50356747]
[1730434727063,0.1172348,2507.8,2507.7,0.786]
[1730434731885,0.1172348,2507.8,2507.7,0.86575048]
[1730434732083,0.1172348,2507.8,2507.7,6.35702795]
[1730434733092,0.1172348,2507.8,2507.6,0.22895675]
[1730434738709,0.1172348,2507.8,2507.6,4.21673675]
[1730434738905,0.1172348,2507.8,2507.7,1.05357242]
[1730434740828,0.1172348,2507.8,2507.7,5.04128242]
[1730434743237,0.1172348,2507.8,2507.7,5.82898242]
[1730434743616,0.1172348,2507.8,2507.7,7.33254989]
[1730434746407,0.1172348,2507.8,2507.7,7.41229058]
[1730434747107,0.1172348,2507.8,2507.7,12.46585805]
[1730434747306,0.06931812,2509.3,2508.4,3.98645]
[1730434747307,3.98572,2509.0,2508.4,3.98645]
[1730434747657,0.8045,2509.1,2508.7,1.50356747]
[1730434748009,0.8045,2509.1,2508.5,1.156745]
[1730434748214,4.79011,2509.1,2508.5,1.156745]
[1730434748437,4.79011,2509.1,2508.5,1.2364657]
[1730434748811,3.98574,2509.0,2508.5,0.4783657]
[1730434749444,3.98574,2509.0,2508.5,1.98193317]
[1730434751447,4.79011,2509.1,2508.6,0.67265232]
[1730434752246,8.77574,2509.1,2508.6,0.67265232]
[1730434752543,3.98607,2508.8,2508.6,0.67265232]
[1730434752751,3.98565,2509.0,2508.5,1.98193317]
[1730434752927,7.97142,2509.0,2508.5,1.98193317]
[1730434753261,2.28966747,2508.8,2508.1,0.8323]
[1730434753424,3.98621,2508.7,2508.1,0.8323]
[1730434753624,3.98621,2508.7,2508.1,6.32282747]
[1730434753821,3.98621,2508.7,2508.1,2.33586747]
[1730434754148,3.98621,2508.7,2508.2,0.63230075]
[1730434754745,0.7861,2508.8,2508.2,4.61920075]
[1730434754923,3.98581,2508.9,2508.4,0.7836]
[1730434756555,7.97173,2508.9,2508.4,0.7836]
[1730434756714,3.986,2508.8,2508.4,0.7836]
[1730434757943,7.97177,2508.9,2508.4,0.7836]
[1730434758247,3.98599,2508.8,2508.4,0.7836]
[1730434760733,3.98581,2508.9,2508.4,0.7836]
[1730434761128,3.98597,2508.8,2508.4,0.7836]
[1730434762031,0.7801,2508.6,2508.1,3.7703]